fUSD/lending_fUSD_20251224
["ID","MTS","AMOUNT","RATE_DAILY","PERIOD"]
[399680530,1766614344545,-500.0,0.00012913,2]
[399680531,1766614344592,-500.0,0.00012913,2]
[399680532,1766614344642,-620.10277416,0.00012913,2]
[399680533,1766614344692,-500.0,0.00012913,2]
[399680534,1766614344740,-500.0,0.00012913,2]
[399680535,1766614344782,-500.0,0.00012913,2]
[399680536,1766614344830,-259.80445168,0.00012913,2]
[399680537,1766614345297,-240.19554832,0.00012913,2]
[399680538,1766614345342,-500.0,0.00012913,2]
[399680539,1766614345386,-500.0,0.00012913,2]
[399680540,1766614345431,-500.0,0.00012913,2]
[399680541,1766614345475,-500.0,0.00012913,2]
[399680542,1766614345520,-500.0,0.00012913,2]
[399680543,1766614345564,-500.0,0.00012913,2]
[399680544,1766614345608,-500.0,0.00012913,2]
[399680545,1766614345651,-500.0,0.00012913,2]
[399680546,1766614345703,-500.0,0.00012913,2]
[399680547,1766614345741,-15.84256634,0.00012914,2]
[399680548,1766614346434,-224.35298198,0.00012814,2]
[399680549,1766614346490,-257.67681795,0.00012814,2]
[399680550,1766614346502,-180.63450376,0.00012913,2]
[399680551,1766614346513,-65.46501531,0.00012914,2]
[399680552,1766614348205,-422.46875537,0.00012914,2]
[399680553,1766614348905,-9155.07248926,0.00012914,2]
[399680554,1766614350429,-10000.01,0.00012914,2]
[399680555,1766614350586,-10000.01,0.00012914,2]
[399680556,1766614350710,-10000.01,0.00012914,2]
[399680557,1766614357690,2207.60167925,0.00012814,2]
[399680558,1766614366833,295.28,0.00012474,2]
[399680559,1766614368114,2654.7,0.00012474,2]
[399680560,1766614374597,380.2395,0.00012814,2]
[399680561,1766614381281,300.0,0.00012913,2]
[399680562,1766614383516,628.42658532,0.00012913,2]
[399680563,1766614383554,178.40612798,0.00012913,2]
[399680564,1766614383598,898.08433789,0.00012913,2]
[399680565,1766614383638,341.16073738,0.00012913,2]
[399680566,1766614385734,392.11692125,0.00012913,2]
[399680567,1766614389296,1200.0,0.00012913,2]
[399680568,1766614392901,500.0,0.00012913,2]
[399680569,1766614392946,23.99411093,0.00012913,2]
[399680570,1766614392973,476.00588907,0.00012913,2]
[399680571,1766614393047,482.75812618,0.00012913,2]
[399680572,1766614399006,999.0,0.00012479,3]
[399680573,1766614403634,1000.0,0.00012913,2]
[399680574,1766614405536,8041.24598475,0.00012814,2]
[399680575,1766614405561,10000.01,0.00012814,2]
[399680576,1766614405586,10000.01,0.00012814,2]
[399680577,1766614405609,5463.32391525,0.00012814,2]
[399680578,1766614434089,514.49,0.00012398,2]
[399680579,1766614436069,1000.0,0.00012814,2]
[399680580,1766614463180,350.2804,0.00012814,2]
[399680581,1766614475365,2500.0,0.00012814,2]
[399680582,1766614476925,1500.0,0.000123,2]
[399680583,1766614501152,300.0,0.00012913,2]
[399680584,1766614501193,300.0,0.00012913,2]
[399680585,1766614501474,150.0,0.00012913,2]
[399680586,1766614501763,1200.0,0.00012913,2]
[399680587,1766614505954,368.99647397,0.00012913,2]
[399680588,1766614521073,500.0,0.00012913,2]
[399680589,1766614521122,568.90030824,0.00012913,2]
[399680590,1766614535313,500.0,0.00012913,2]
[399680591,1766614535892,537.93068833,0.00012913,2]
[399680592,1766614561210,300.0,0.00012913,2]
[399680593,1766614578525,923.90212946,0.00012814,2]
[399680594,1766614578552,10000.01,0.00012814,2]
[399680595,1766614578578,1991.20058506,0.00012814,2]
[399680596,1766614585400,1000.0,0.00012814,2]
[399680597,1766614586367,1199.8,0.00012377,2]
[399680598,1766614603918,2202.74,0.00012814,2]
[399680599,1766614625465,421.77607493,0.00012814,2]
[399680600,1766614632019,151.0,0.00012914,2]
[399680601,1766614632629,151.0,0.00012914,2]
[399680602,1766614633218,151.0,0.00012914,2]
[399680603,1766614633622,151.0,0.00012914,2]
[399680604,1766614633846,151.0,0.00012914,2]
[399680605,1766614634218,151.0,0.00012914,2]
[399680606,1766614634446,151.0,0.00012914,2]
[399680607,1766614634784,151.0,0.00012914,2]
[399680608,1766614635015,151.0,0.00012914,2]
[399680609,1766614635538,151.0,0.00012914,2]
[399680610,1766614635630,258.72522517,0.00012914,2]
[399680611,1766614636115,151.0,0.00012914,2]
[399680612,1766614637726,200.0,0.00012914,2]
[399680613,1766614639898,-500.0,0.00012884,2]
[399680614,1766614639930,-500.0,0.00012911,2]
[399680615,1766614642918,-500.0,0.00012884,2]
[399680616,1766614642951,-500.0,0.00012911,2]
[399680617,1766614643409,-110.47085958,0.00012914,2]
[399680618,1766614645961,-500.0,0.00012884,2]
[399680619,1766614645994,-500.0,0.00012911,2]
[399680620,1766614646072,-8000.01,0.00012914,2]
[399680621,1766614646135,-10000.01,0.00012914,2]
[399680622,1766614646237,-10000.01,0.00012914,2]
[399680623,1766614674099,-153.56,0.00012913,2]
[399680624,1766614715073,1085.2,0.00021918,30]
[399680625,1766614744286,-156.82249201,0.00012814,2]
[399680626,1766614746765,-173.97806842,0.00012814,2]
[399680627,1766614752329,5300.74,0.00012221,2]
[399680628,1766614759846,151.0,0.00012811,2]
[399680629,1766614774470,-175.93951515,0.00012227,2]
[399680630,1766614776232,-162.8662351,0.00012227,2]
[399680631,1766614781392,-239.19545716,0.00012227,2]
[399680632,1766614783615,-250.81879259,0.00012223,2]
[399680633,1766614838394,340.74,6.1e-05,2]
[399680634,1766614838595,340.74,6.421e-05,2]
[399680635,1766614838791,340.74,6.742e-05,2]
[399680636,1766614839007,340.74,7.063e-05,2]
[399680637,1766614839222,340.74,7.384e-05,2]
[399680638,1766614839756,340.74,7.705e-05,2]
[399680639,1766614839903,340.74,8.026e-05,2]
[399680640,1766614840000,340.74,8.347e-05,2]
[399680641,1766614840069,340.74,8.668e-05,2]
[399680642,1766614840445,340.74,8.989e-05,2]
[399680643,1766614840657,340.74,9.31e-05,2]
[399680644,1766614840860,340.74,9.631e-05,2]
[399680645,1766614841099,340.74,9.952e-05,2]
[399680646,1766614841295,340.74,0.00010273,2]
[399680647,1766614841493,340.74,0.00010594,2]
[399680648,1766614841692,340.74,0.00010916,2]
[399680649,1766614841915,340.74,0.00011237,2]
[399680650,1766614842103,340.74,0.00011558,2]
[399680651,1766614842304,340.74,0.00011879,2]
[399680652,1766614842509,340.74,0.000122,2]
[399680653,1766614903232,-300.0,0.00012222,2]
[399680654,1766614903259,-156.90710145,0.00012222,2]
[399680655,1766614906582,-200.0,0.00012222,2]
[399680656,1766614911760,-412.76644796,0.00012222,2]
[399680657,1766614922052,656.907102,0.0001216,2]
[399680658,1766614928434,200.0,0.00011933,2]
[399680659,1766615097384,-430.32645059,0.00012222,2]
[399680660,1766615097418,-1200.0,0.00012222,2]
[399680661,1766615097450,-300.0,0.00012222,2]
[399680662,1766615097482,-300.0,0.00012222,2]
[399680663,1766615097529,-396.68321638,0.00012222,2]
[399680664,1766615097584,-300.0,0.00012222,2]
[399680665,1766615097627,-300.0,0.00012222,2]
[399680666,1766615098736,-585.51356406,0.00012223,2]
[399680667,1766615102103,-1200.0,0.00012222,2]
[399680668,1766615102140,-300.0,0.00012222,2]
[399680669,1766615102294,-7000.01,0.00012223,2]
[399680670,1766615116293,412.766448,0.00012161,2]
[399680671,1766615121845,-202.617375,0.00012223,2]
[399680672,1766615123777,-170.87836276,0.00012223,2]
[399680673,1766615125709,-159.44808783,0.00012223,2]
[399680674,1766615128686,532.943825,0.00012161,2]
[399680675,1766615158125,215.55,0.00011948,2]
[399680678,1766615192690,500.0,0.00011835,2]
[399680680,1766615224372,4052.17,0.00011855,2]
[399680681,1766615249363,4286.579727,0.00011908,2]
[399680682,1766615251872,-94.280273,0.00011908,2]
[399680684,1766615260499,-2082.79381776,0.00012223,2]
[399680685,1766615260533,-300.0,0.00012223,2]
[399680686,1766615260567,-250.0,0.00012223,2]
[399680687,1766615260599,-1831.09879259,0.00012227,2]
[399680688,1766615260633,-150.0,0.0001264,2]
[399680689,1766615260665,-150.0,0.0001264,2]
[399680690,1766615260696,-150.0,0.0001264,2]
[399680691,1766615261436,-500.0,0.00012665,2]
[399680692,1766615261469,-500.0,0.00012665,2]
[399680693,1766615261502,-150.0,0.00012667,2]
[399680694,1766615261535,-500.0,0.00012692,2]
[399680695,1766615261573,-500.0,0.00012692,2]
[399680696,1766615261605,-210.99318264,0.00012695,2]
[399680697,1766615261636,-987.0,0.000127,2]
[399680698,1766615261667,-150.0,0.00012712,2]
[399680699,1766615261701,-500.0,0.00012712,2]
[399680700,1766615261733,-500.0,0.00012712,2]
[399680701,1766615261804,-1742.449,0.00012713,2]
[399680702,1766615261836,-206.339,0.00012713,2]
[399680703,1766615261868,-150.0,0.00012713,2]
[399680704,1766615261899,-236.0134,0.00012714,2]
[399680706,1766615263474,-6515.2086,0.00012714,2]
[399680707,1766615263531,-10000.01,0.00012714,2]
[399680708,1766615266441,-10000.01,0.00012714,2]
[399680710,1766615285875,-10000.01,0.00012714,2]
[399680711,1766615286113,-3425.218,0.00012714,2]
[399680712,1766615286141,-3149.574,0.00012714,2]
[399680713,1766615286222,-403.88347706,0.00012714,2]
[399680714,1766615286257,-471.73345919,0.00012714,2]
[399680715,1766615286291,-503.23328341,0.00012714,2]
[399680716,1766615286324,-500.0,0.0001272,2]
[399680717,1766615286356,-261.31387808,0.0001272,2]
[399680718,1766615286389,-150.0,0.00012739,2]
[399680719,1766615286420,-500.0,0.00012739,2]
[399680720,1766615286452,-500.0,0.00012739,2]
[399680721,1766615286485,-302.44548521,0.00012747,2]
[399680722,1766615286524,-200.0,0.00012767,2]
[399680723,1766615286559,-500.0,0.00012767,2]
[399680724,1766615286592,-500.0,0.00012767,2]
[399680725,1766615286715,-500.0,0.00012794,2]
[399680726,1766615286751,-200.0,0.00012806,2]
[399680727,1766615286785,-500.0,0.00012806,2]
[399680728,1766615286819,-500.0,0.00012806,2]
[399680729,1766615286852,-500.0,0.00012806,2]
[399680730,1766615286886,-500.0,0.00012806,2]
[399680731,1766615286920,-500.0,0.00012806,2]
[399680732,1766615286957,-500.0,0.00012806,2]
[399680733,1766615286992,-500.0,0.00012806,2]
[399680734,1766615287029,-500.0,0.00012806,2]
[399680735,1766615287063,-151.0,0.00012806,2]
[399680736,1766615287240,-500.0,0.00012806,2]
[399680737,1766615287277,-500.0,0.00012806,2]
[399680738,1766615287312,-151.0,0.00012806,2]
[399680739,1766615287346,-500.0,0.00012806,2]
[399680740,1766615287381,-500.0,0.00012806,2]
[399680741,1766615287415,-151.0,0.00012806,2]
[399680742,1766615287451,-500.0,0.00012806,2]
[399680743,1766615287486,-500.0,0.00012806,2]
[399680744,1766615287522,-151.0,0.00012806,2]
[399680745,1766615287558,-500.0,0.00012806,2]
[399680746,1766615287595,-500.0,0.00012806,2]
[399680747,1766615287628,-176.91595406,0.00012806,2]
[399680748,1766615287662,-240.17809188,0.00012806,2]
[399680749,1766615287822,-300.0,0.00012714,2]
[399680750,1766615287855,-259.82190812,0.00012806,2]
[399680751,1766615287887,-500.0,0.00012806,2]
[399680752,1766615287920,-500.0,0.00012806,2]
[399680753,1766615288258,-500.0,0.00012806,2]
[399680754,1766615288293,-500.0,0.00012806,2]
[399680755,1766615288328,-500.0,0.00012806,2]
[399680756,1766615288360,-200.0,0.00012806,2]
[399680757,1766615288392,-200.0,0.00012806,2]
[399680758,1766615288427,-151.0,0.00012806,2]
[399680759,1766615288462,-151.0,0.00012806,2]
[399680760,1766615288499,-151.0,0.00012806,2]
[399680761,1766615288535,-151.0,0.00012806,2]
[399680762,1766615288572,-151.0,0.00012806,2]
[399680763,1766615288611,-151.0,0.00012806,2]
[399680764,1766615288647,-151.0,0.00012806,2]
[399680765,1766615288683,-151.0,0.00012806,2]
[399680766,1766615288720,-151.0,0.00012806,2]
[399680767,1766615288755,-151.0,0.00012806,2]
[399680768,1766615288925,-151.0,0.00012806,2]
[399680769,1766615288963,-150.0,0.00012813,2]
[399680770,1766615288998,-500.0,0.00012813,2]
[399680771,1766615289033,-407.11797079,0.00012813,2]
[399680772,1766615289069,-193.19423259,0.00012813,2]
[399680773,1766615289105,-480.24188989,0.00012813,2]
[399680774,1766615289140,-500.0,0.00012813,2]
[399680775,1766615289172,-500.0,0.00012813,2]
[399680776,1766615289206,-236.37477528,0.00012813,2]
[399680777,1766615289247,-500.0,0.00012813,2]
[399680778,1766615289281,-500.0,0.00012813,2]
[399680779,1766615289313,-500.0,0.00012813,2]
[399680780,1766615289353,-264.1522629,0.00012813,2]
[399680781,1766615289487,-235.8477371,0.00012813,2]
[399680782,1766615289520,-223.2713571,0.00012813,2]
[399680783,1766615289560,-500.0,0.00012813,2]
[399680784,1766615289592,-500.0,0.00012813,2]
[399680785,1766615289631,-500.0,0.00012813,2]
[399680786,1766615289663,-500.0,0.00012813,2]
[399680787,1766615289702,-500.0,0.00012813,2]
[399680788,1766615289734,-500.0,0.00012813,2]
[399680789,1766615289775,-500.0,0.00012813,2]
[399680790,1766615289815,-500.0,0.00012813,2]
[399680791,1766615289855,-500.0,0.00012813,2]
[399680792,1766615289997,-500.0,0.00012813,2]
[399680793,1766615290038,-500.0,0.00012813,2]
[399680794,1766615290079,-500.0,0.00012813,2]
[399680795,1766615290119,-500.0,0.00012813,2]
[399680796,1766615290159,-252.56737376,0.00012813,2]
[399680797,1766615290199,-500.0,0.00012813,2]
[399680798,1766615290240,-500.0,0.00012813,2]
[399680799,1766615290280,-500.0,0.00012813,2]
[399680800,1766615290321,-500.0,0.00012813,2]
[399680801,1766615290352,-500.0,0.00012813,2]
[399680802,1766615292064,-500.0,0.00012813,2]
[399680803,1766615292104,-500.0,0.00012813,2]
[399680804,1766615292144,-500.0,0.00012813,2]
[399680805,1766615292183,-378.00230989,0.00012813,2]
[399680806,1766615292224,-500.0,0.00012813,2]
[399680807,1766615297538,446.80975449,0.00012813,2]
[399680808,1766615301973,-220.07387993,0.00012814,2]
[399680809,1766615303514,-516.81572099,0.00012814,2]
[399680810,1766615306220,-305.57895026,0.00012814,2]
[399680811,1766615308243,-504.53668497,0.00012814,2]
[399680812,1766615309377,-172.36889812,0.00012814,2]
[399680815,1766615311984,-189.11722755,0.00012814,2]
[399680816,1766615314639,-245.8797037,0.00012814,2]
[399680817,1766615315583,10000.01,0.00012714,2]
[399680818,1766615315614,9231.82147281,0.00012714,2]
[399680819,1766615317726,-250.0,0.00012814,2]
[399680820,1766615319829,-195.0,0.00012814,2]
[399680821,1766615323188,-243.32495825,0.00012814,2]
[399680822,1766615323894,768.18852719,0.00012714,2]
[399680823,1766615323921,10000.01,0.00012714,2]
[399680824,1766615323948,10000.01,0.00012714,2]
[399680825,1766615323975,4745.49517281,0.00012714,2]
[399680826,1766615327446,-239.51454569,0.00012814,2]
[399680827,1766615329825,2500.0,0.00012714,2]
[399680828,1766615338373,-322.0,0.00012814,2]
[399680829,1766615338521,500.0,0.00012813,2]
[399680830,1766615338575,500.0,0.00012813,2]
[399680831,1766615338626,152.42699696,0.00012813,2]
[399680832,1766615341236,300.0,0.00012813,2]
[399680833,1766615358338,8547.58300304,0.00012714,2]
[399680834,1766615358365,5502.87846292,0.00012714,2]
[399680835,1766615365116,-973.54296636,0.00012814,2]
[399680836,1766615367910,246.85207098,0.00012813,2]
[399680837,1766615368769,211.3579129,0.00012813,2]
[399680838,1766615368850,335.4888556,0.00012714,2]
[399680839,1766615368938,233.42856466,0.00012813,2]
[399680840,1766615400001,2746.891468,0.0001275,2]
[399680841,1766615401199,300.0,0.00012813,2]
[399680842,1766615401534,1200.0,0.00012813,2]
[399680843,1766615401714,150.0,0.00012813,2]
[399680850,1766615432207,-101056.40294815,0.00012814,2]
[399680851,1766615432220,-92402.91124666,0.00012814,2]
[399680852,1766615432232,-29374.56588091,0.00012814,2]
[399680853,1766615432243,-35871.32462248,0.00012814,2]
[399680854,1766615432255,-500.0,0.00012814,2]
[399680855,1766615432267,-706.82716929,0.00012814,2]
[399680856,1766615432279,-265.84703492,0.00012814,2]
[399680857,1766615432291,-5265.3160299,0.00012814,2]
[399680858,1766615432307,-1786.12039198,0.00012814,2]
[399680859,1766615432318,-977.19910769,0.00012814,2]
[399680860,1766615432331,-1023.16132915,0.00012814,2]
[399680861,1766615432421,-15672.15769133,0.00012814,2]
[399680862,1766615432433,-835.60817854,0.00012814,2]
[399680863,1766615432445,-452.91224315,0.00012814,2]
[399680864,1766615432456,-652.30130565,0.00012814,2]
[399680866,1766615432486,-542.91191829,0.00012814,2]
[399680867,1766615432498,-533.34640399,0.00012814,2]
[399680870,1766615432531,-3673.29706504,0.00012814,2]
[399680888,1766615433929,-9363.02246663,0.00012814,2]
[399680889,1766615433996,-161.5512423,0.00012814,2]
[399680890,1766615434074,-1627.99390681,0.00012814,2]
[399680891,1766615438323,-88338.76345873,0.00012814,2]
[399680892,1766615438398,-724.07507002,0.00012814,2]
[399680893,1766615438500,-603483.82919214,0.00012814,2]
[399680894,1766615438509,-1000.0,0.00012814,2]
[399680895,1766615438519,-255.0,0.00012814,2]
[399680896,1766615438529,-300.0,0.00012818,2]
[399680897,1766615438539,-202.1137084,0.00012848,2]
[399680898,1766615438548,-217.39,0.00012861,2]
[399680899,1766615438558,-150.99,0.00012893,2]
[399680900,1766615438568,-346.97,0.00012893,2]
[399680901,1766615438578,-9999.99,0.00012893,2]
[399680902,1766615438587,-1577.15,0.00012893,2]
[399680903,1766615438598,-1808.33,0.00012893,2]
[399680904,1766615438608,-2033.81,0.00012893,2]
[399680906,1766615438618,-292.29,0.00012893,2]
[399680908,1766615438628,-299.99,0.00012893,2]
[399680909,1766615438637,-176.79462931,0.00012913,2]
[399680910,1766615438647,-176.79462931,0.00012913,2]
[399680911,1766615438658,-176.79462931,0.00012913,2]
[399680912,1766615438668,-601.67,0.00012913,2]
[399680914,1766615438678,-200.0,0.00012914,2]
[399680916,1766615438688,-500.0,0.00012928,2]
[399680917,1766615438999,-150.0,0.00012928,2]
[399680918,1766615439025,-150.0,0.00012928,2]
[399680919,1766615439036,-379.66,0.00012929,2]
[399680920,1766615439046,-166.66,0.00012945,2]
[399680921,1766615439056,-500.0,0.00012955,2]
[399680922,1766615439066,-150.0,0.00012955,2]
[399680923,1766615439076,-150.0,0.00012955,2]
[399680924,1766615439085,-186.24487987,0.00012969,2]
[399680925,1766615439095,-500.0,0.00012983,2]
[399680926,1766615439104,-150.0,0.00012983,2]
[399680927,1766615439114,-150.0,0.00012983,2]
[399680928,1766615439124,-1278.0,0.00012993,2]
[399680929,1766615439134,-183.75,0.00013004,2]
[399680930,1766615439144,-500.0,0.0001301,2]
[399680931,1766615439154,-150.0,0.0001301,2]
[399680932,1766615439164,-150.0,0.0001301,2]
[399680933,1766615439173,-151.0,0.00013014,2]
[399680934,1766615439183,-443.08736549,0.00013014,2]
[399680935,1766615439193,-1841.0,0.00013019,2]
[399680936,1766615439202,-500.0,0.00013038,2]
[399680937,1766615439212,-150.0,0.00013038,2]
[399680938,1766615439222,-200.0,0.00013038,2]
[399680939,1766615439231,-409.0,0.0001304,2]
[399680940,1766615439241,-200.0,0.00013043,2]
[399680941,1766615439251,-835.0,0.00013045,2]
[399680942,1766615439261,-1332.0,0.00013058,2]
[399680943,1766615439270,-500.0,0.00013065,2]
[399680944,1766615439280,-159.71887192,0.00013065,2]
[399680945,1766615439289,-405.0,0.00013066,2]
[399680946,1766615439300,-500.0,0.00013068,2]
[399680947,1766615439310,-233.0,0.00013071,2]
[399680948,1766615439320,-585.0,0.00013084,2]
[399680949,1766615439329,-178.0,0.00013092,2]
[399680950,1766615439339,-500.0,0.00013092,2]
[399680951,1766615439348,-906.0,0.0001311,2]
[399680952,1766615439358,-500.0,0.0001311,2]
[399680953,1766615439368,-481.0,0.00013118,2]
[399680954,1766615439377,-30849.86,0.00013118,2]
[399680955,1766615439387,-500.0,0.0001312,2]
[399680956,1766615439396,-473.0,0.00013123,2]
[399680957,1766615439406,-500.0,0.00013123,2]
[399680958,1766615439415,-150.0,0.00013127,2]
[399680959,1766615439425,-1962.0,0.00013136,2]
[399680960,1766615439434,-254.0,0.00013144,2]
[399680961,1766615439444,-500.0,0.00013147,2]
[399680962,1766615439453,-250.42,0.00013148,2]
[399680963,1766615439463,-253.0,0.00013149,2]
[399680964,1766615439473,-1828.0,0.00013162,2]
[399680965,1766615439482,-395.0,0.0001317,2]
[399680966,1766615439491,-200.0,0.00013174,2]
[399680967,1766615439501,-500.0,0.00013175,2]
[399680968,1766615439510,-263.0,0.00013176,2]
[399680969,1766615439519,-151.0,0.00013179,2]
[399680970,1766615439528,-286.60369,0.00013179,2]
[399680971,1766615439538,-19231.83147277,0.00013179,2]
[399680972,1766615439547,-14050.46146588,0.00013179,2]
[399680973,1766615439556,-601.67,0.00013187,2]
[399680974,1766615439566,-870.0,0.00013188,2]
[399680975,1766615439581,-190.0,0.00013196,2]
[399680976,1766615439591,-500.0,0.00013202,2]
[399680977,1766615439600,-477.0,0.00013202,2]
[399680978,1766615439609,-211.0,0.00013214,2]
[399680979,1766615439619,-260.98879975,0.00013229,2]
[399680980,1766615439629,-250.0,0.0001323,2]
[399680981,1766615439638,-543.0,0.0001323,2]
[399680982,1766615439647,-267.16027015,0.0001323,2]
[399680983,1766615439657,-578.20924308,0.0001323,2]
[399680984,1766615439667,-500.0,0.0001323,2]
[399680985,1766615439676,-500.0,0.0001323,2]
[399680986,1766615439686,-500.0,0.0001323,2]
[399680987,1766615439695,-500.0,0.0001323,2]
[399680988,1766615439704,-500.0,0.0001323,2]
[399680989,1766615439714,-500.0,0.0001323,2]
[399680990,1766615439723,-500.0,0.0001323,2]
[399680991,1766615439733,-500.0,0.0001323,2]
[399680992,1766615439742,-500.0,0.0001323,2]
[399680993,1766615439752,-500.0,0.0001323,2]
[399680994,1766615439762,-500.0,0.0001323,2]
[399680995,1766615439772,-500.0,0.0001323,2]
[399680996,1766615439782,-500.0,0.0001323,2]
[399680997,1766615439792,-500.0,0.0001323,2]
[399680998,1766615439801,-500.0,0.0001323,2]
[399680999,1766615439811,-500.0,0.0001323,2]
[399681000,1766615439821,-500.0,0.0001323,2]
[399681001,1766615439830,-500.0,0.0001323,2]
[399681002,1766615439840,-200.0,0.0001323,2]
[399681003,1766615439850,-500.0,0.0001323,2]
[399681004,1766615439859,-207.4,0.0001323,2]
[399681005,1766615439868,-500.0,0.0001323,2]
[399681006,1766615439877,-215.0738,0.0001323,2]
[399681007,1766615439887,-500.0,0.0001323,2]
[399681008,1766615439896,-223.0315306,0.0001323,2]
[399681009,1766615439905,-500.0,0.0001323,2]
[399681010,1766615439914,-231.28369723,0.0001323,2]
[399681011,1766615439923,-239.84119403,0.0001323,2]
[399681012,1766615439933,-248.71531821,0.0001323,2]
[399681013,1766615439943,-257.91778498,0.0001323,2]
[399681014,1766615439953,-267.46074303,0.0001323,2]
[399681015,1766615439963,-277.35679052,0.0001323,2]
[399681016,1766615439973,-322.6107,0.0001323,2]
[399681017,1766615439982,-1736.93,0.00013236,2]
[399681018,1766615439996,-518.0,0.00013241,2]
[399681019,1766615440006,-213.992262,0.00013268,2]
[399681020,1766615440015,-200.0,0.00013305,2]
[399681021,1766615440026,-3038.4789423,0.00013332,2]
[399681022,1766615440037,-201.0916735,0.00013354,2]
[399681023,1766615440047,-500.0,0.00013384,2]
[399681024,1766615440057,-151.0,0.00013444,2]
[399681025,1766615440069,-250.0,0.00013445,2]
[399681026,1766615440079,-300.0,0.00013445,2]
[399681027,1766615440088,-601.67,0.00013461,2]
[399681028,1766615440099,-1000.0,0.000135,2]
[399681029,1766615440109,-1098.0,0.00013575,2]
[399681030,1766615440118,-1736.93,0.00013604,2]
[399681031,1766615440128,-243.679023,0.00013644,2]
[399681032,1766615440137,-19231.83147277,0.00013644,2]
[399681033,1766615440147,-14050.46146588,0.00013644,2]
[399681034,1766615440157,-500.0,0.00013658,2]
[399681035,1766615440167,-183.75,0.00013689,2]
[399681036,1766615440177,-500.0,0.00013698,2]
[399681037,1766615440187,-500.0,0.00013698,2]
[399681038,1766615440197,-500.0,0.00013698,2]
[399681039,1766615440207,-500.0,0.00013698,2]
[399681040,1766615440216,-500.0,0.00013698,2]
[399681041,1766615440227,-500.0,0.00013698,2]
[399681042,1766615440237,-500.0,0.00013698,2]
[399681043,1766615440246,-500.0,0.00013698,2]
[399681045,1766615440255,-500.0,0.00013698,2]
[399681046,1766615440265,-500.0,0.00013698,2]
[399681047,1766615440275,-500.0,0.00013698,2]
[399681048,1766615440285,-500.0,0.00013698,2]
[399681049,1766615440295,-205.434949,0.00013698,2]
[399681050,1766615440305,-365.27868297,0.00013698,2]
[399681051,1766615440315,-500.0,0.00013698,2]
[399681052,1766615440324,-500.0,0.00013698,2]
[399681053,1766615440334,-500.0,0.00013698,2]
[399681054,1766615440343,-500.0,0.00013698,2]
[399681055,1766615440353,-500.0,0.00013698,2]
[399681056,1766615440363,-500.0,0.00013698,2]
[399681057,1766615440373,-500.0,0.00013698,2]
[399681058,1766615440382,-500.0,0.00013698,2]
[399681059,1766615440392,-500.0,0.00013698,2]
[399681060,1766615440402,-500.0,0.00013698,2]
[399681061,1766615440411,-500.0,0.00013698,2]
[399681062,1766615440421,-500.0,0.00013698,2]
[399681063,1766615440431,-500.0,0.00013698,2]
[399681064,1766615440442,-500.0,0.00013698,2]
[399681065,1766615440452,-500.0,0.00013698,2]
[399681066,1766615440462,-500.0,0.00013698,2]
[399681067,1766615440474,-500.0,0.00013698,2]
[399681068,1766615440484,-208.69,0.00013698,2]